[Event "Turkish Cup 2022"]
[Site "Sakarya"]
[Date "2022.03.25"]
[Round "1.35"]
[White "Iyican, Sude"]
[Black "Temizer, Umut"]
[Result "0-1"]
[ECO "E48"]
[WhiteElo "1144"]
[BlackElo "1972"]
[Annotator "NA"]
[PlyCount "66"]
[EventDate "2022.03.25"]
[EventType "swiss"]
[EventCountry "TUR"]
[SourceTitle "playchess.com"]
[Source "ChessBase"]
[SourceQuality "1"]
[TimeControl "5400+30"]

1. d4 {[%emt 0:01:00]} Nf6 {[%emt 0:01:00]} 2. c4 {[%emt 0:00:00]} e6 {[%emt 0:01:30]} 3. Nc3 {[%emt 0:00:00]} Bb4 {[%emt 0:01:30]} 4. e3 {[%emt 0:01:30]} O-O {[%emt 0:01:30]} 5. Bd3 {[%emt 0:00:30]} d5 {[%emt 0:00:30]} 6. cxd5 {[%emt 0:02:30]} exd5 {[%emt 0:03:30]} 7. Nge2 {[%emt 0:00:30]} c5 {[%emt 0:24:30]} 8. O-O {[%emt 0:06:30]} Nc6 {[%emt 0:00:30]} 9. a3 {[%emt 0:10:30]} Ba5 {[%emt 0:08:30]} 10. dxc5 {[%emt 0:02:30]} Bc7 {[%emt 0:03:30]} 11. Nd4 {[%emt 0:21:30]} Qe7 {[%emt 0:16:30]} 12. b4 {[%emt 0:06:30]} Ne5 {[%emt 0:08:30]} 13. Be2 {[%emt 0:05:30]} Rd8 {[%emt 0:10:30]} 14. Qb3 {[%emt 0:24:23]} Neg4 {[%emt 0:06:35]} 15. h3 {[%emt 0:05:06]} Qe5 {[%emt 0:04:23]} 16. f4 {[%emt 0:02:11]} Qh5 {[%emt 0:01:17]} 17. hxg4 {[%emt 0:02:23]} Bxg4 {[%emt 0:00:04]} 18. Nf3 {[%emt 0:03:58]} a6 {[%emt 0:01:01]} 19. Qb2 {[%emt 0:01:15]} Re8 {[%emt 0:00:47]} 20. Nh2 {[%emt 0:00:24]} Bxe2 {[%emt 0:02:11]} 21. Qxe2 {[%emt 0:00:30]} Qf5 {[%emt 0:00:00]} 22. Qf2 {[%emt 0:01:18]} h5 {[%emt 0:00:40]} 23. Rd1 {[%emt 0:00:51]} Re6 {[%emt 0:00:25]} 24. Qf3 {[%emt 0:00:04]} Rd8 {[%emt 0:00:23]} 25. Qe2 {[%emt 0:00:36]} Bxf4 {[%emt 0:01:05]} 26. Qd3 {[%emt 0:00:51]} Bxh2+ {[%emt 0:00:37]} 27. Kxh2 {[%emt 0:00:08]} Ng4+ {[%emt 0:00:00]} 28. Kg1 {[%emt 0:01:04]} Qf2+ {[%emt 0:00:00]} 29. Kh1 {[%emt 0:00:32]} Qh4+ {[%emt 0:00:03]} 30. Kg1 {[%emt 0:00:31]} Qh2+ {[%emt 0:00:05]} 31. Kf1 {[%emt 0:00:30]} Qh1+ {[%emt 0:00:06]} 32. Ke2 {[%emt 0:00:28]} Qxg2+ {[%emt 0:00:10]} 33. Ke1 {[%emt 0:00:24]} Qf2# {[%emt 0:00:03]} 0-1

[Event "Turkish Cup 2022"]
[Site "Sakarya"]
[Date "2022.03.25"]
[Round "1.36"]
[White "Maruflu, Enes Yusuf"]
[Black "Evin, Abdulkerim"]
[Result "1-0"]
[ECO "A34"]
[WhiteElo "1945"]
[BlackElo "1359"]
[Annotator "NA"]
[PlyCount "69"]
[EventDate "2022.03.25"]
[EventType "swiss"]
[EventCountry "TUR"]
[SourceTitle "playchess.com"]
[Source "ChessBase"]
[SourceQuality "1"]
[TimeControl "5400+30"]

1. Nf3 {[%emt 0:01:00]} Nf6 {[%emt 0:01:00]} 2. c4 {[%emt 0:00:00]} c5 {[%emt 0:00:00]} 3. Nc3 {[%emt 0:01:00]} Nc6 {[%emt 0:00:00]} 4. e3 {[%emt 0:00:30]} e5 {[%emt 0:01:30]} 5. d3 {[%emt 0:02:30]} Be7 {[%emt 0:00:30]} 6. g3 {[%emt 0:00:30]} d6 {[%emt 0:00:30]} 7. Bg2 {[%emt 0:00:30]} Bd7 {[%emt 0:00:30]} 8. O-O {[%emt 0:00:30]} O-O {[%emt 0:00:30]} 9. b3 {[%emt 0:00:30]} Qc8 {[%emt 0:00:30]} 10. Bb2 {[%emt 0:05:30]} Bg4 {[%emt 0:02:30]} 11. Qb1 {[%emt 0:01:30]} Bh3 {[%emt 0:02:30]} 12. Ne4 {[%emt 0:01:30]} Bxg2 {[%emt 0:01:30]} 13. Kxg2 {[%emt 0:00:00]} Nxe4 {[%emt 0:00:30]} 14. dxe4 {[%emt 0:00:00]} f5 {[%emt 0:00:30]} 15. exf5 {[%emt 0:00:30]} Qxf5 {[%emt 0:01:30]} 16. Qxf5 {[%emt 0:00:30]} Rxf5 {[%emt 0:00:00]} 17. Bc3 {[%emt 0:00:30]} a5 {[%emt 0:02:00]} 18. a4 {[%emt 0:00:30]} Raf8 {[%emt 0:00:30]} 19. Nd2 {[%emt 0:00:00]} b6 {[%emt 0:02:30]} 20. Rad1 {[%emt 0:00:00]} Na7 {[%emt 0:00:30]} 21. Ne4 {[%emt 0:00:30]} Nc8 {[%emt 0:00:30]} 22. Rd5 {[%emt 0:00:00]} Rd8 {[%emt 0:00:30]} 23. Rfd1 {[%emt 0:00:00]} Kf7 {[%emt 0:01:30]} 24. g4 {[%emt 0:00:30]} g6 {[%emt 0:00:30]} 25. gxf5 {[%emt 0:00:30]} gxf5 {[%emt 0:00:00]} 26. Ng3 {[%emt 0:00:00]} Rg8 {[%emt 0:01:00]} 27. f4 {[%emt 0:00:00]} h5 {[%emt 0:02:30]} 28. Kf2 {[%emt 0:01:30]} exf4 {[%emt 0:01:30]} 29. exf4 {[%emt 0:00:00]} h4 {[%emt 0:05:30]} 30. Nxf5 {[%emt 0:01:00]} Rg6 {[%emt 0:01:30]} 31. Nxe7 {[%emt 0:00:30]} Kxe7 {[%emt 0:00:30]} 32. f5 {[%emt 0:00:30]} Rg8 {[%emt 0:00:30]} 33. f6+ {[%emt 0:00:30]} Kf7 {[%emt 0:00:00]} 34. Re1 {[%emt 0:01:30]} h3 {[%emt 0:01:00]} 35. Rg1 {[%emt 0:00:00]} 1-0

[Event "Turkish Cup 2022"]
[Site "Sakarya"]
[Date "2022.03.25"]
[Round "1.37"]
[White "Akgun, Yusuf"]
[Black "Yasin, Hur"]
[Result "0-1"]
[ECO "B04"]
[WhiteElo "1561"]
[BlackElo "1931"]
[Annotator "NA"]
[PlyCount "80"]
[EventDate "2022.03.25"]
[EventType "swiss"]
[EventCountry "TUR"]
[SourceTitle "playchess.com"]
[Source "ChessBase"]
[SourceQuality "1"]
[TimeControl "5400+30"]

1. e4 {[%emt 0:01:00]} Nf6 {[%emt 0:01:00]} 2. e5 {[%emt 0:00:30]} Nd5 {[%emt 0:00:00]} 3. d4 {[%emt 0:00:30]} d6 {[%emt 0:00:00]} 4. c4 {[%emt 0:01:30]} Nb6 {[%emt 0:00:30]} 5. exd6 {[%emt 0:01:30]} cxd6 {[%emt 0:00:00]} 6. Nf3 {[%emt 0:01:30]} g6 {[%emt 0:00:00]} 7. b3 {[%emt 0:00:30]} Bg7 {[%emt 0:00:30]} 8. Bb2 {[%emt 0:03:30]} Bg4 {[%emt 0:02:30]} 9. Be2 {[%emt 0:02:30]} Nc6 {[%emt 0:00:30]} 10. Nbd2 {[%emt 0:02:30]} O-O {[%emt 0:07:30]} 11. O-O {[%emt 0:00:30]} d5 {[%emt 0:00:30]} 12. h3 {[%emt 0:09:30]} Bf5 {[%emt 0:09:30]} 13. a3 {[%emt 0:04:30]} dxc4 {[%emt 0:00:30]} 14. Nxc4 {[%emt 0:00:30]} Nd5 {[%emt 0:00:30]} 15. Re1 {[%emt 0:05:30]} Rc8 {[%emt 0:03:30]} 16. Bd3 {[%emt 0:10:30]} Bxd3 {[%emt 0:02:30]} 17. Qxd3 {[%emt 0:00:30]} e6 {[%emt 0:00:30]} 18. Rad1 {[%emt 0:05:30]} Qc7 {[%emt 0:04:30]} 19. Qe4 {[%emt 0:08:30]} Na5 {[%emt 0:06:30]} 20. Nxa5 {[%emt 0:06:30]} Qxa5 {[%emt 0:00:00]} 21. Ne5 {[%emt 0:03:30]} Qb5 {[%emt 0:03:00]} 22. Qf3 {[%emt 0:04:30]} Rc2 {[%emt 0:02:30]} 23. Nc4 {[%emt 0:05:30]} Qc6 {[%emt 0:02:30]} 24. Qe4 {[%emt 0:03:08]} Rxb2 {[%emt 0:08:30]} 25. Nxb2 {[%emt 0:00:22]} Qc3 {[%emt 0:00:30]} 26. Nc4 {[%emt 0:02:42]} Qxb3 {[%emt 0:00:00]} 27. Qd3 {[%emt 0:00:19]} Qa4 {[%emt 0:03:00]} 28. Ne3 {[%emt 0:03:55]} Rd8 {[%emt 0:01:30]} 29. g3 {[%emt 0:04:56]} Ne7 {[%emt 0:03:30]} 30. Rb1 {[%emt 0:04:44]} Rxd4 {[%emt 0:02:30]} 31. Qb3 {[%emt 0:02:00]} b6 {[%emt 0:01:30]} 32. Rec1 {[%emt 0:00:27]} Qd7 {[%emt 0:02:30]} 33. Rd1 {[%emt 0:01:11]} Nc6 {[%emt 0:01:30]} 34. Rxd4 {[%emt 0:00:36]} Nxd4 {[%emt 0:00:30]} 35. Qb4 {[%emt 0:01:41]} Bf8 {[%emt 0:03:30]} 36. Qb2 {[%emt 0:00:45]} Bc5 {[%emt 0:02:30]} 37. h4 {[%emt 0:00:35]} Qb7 {[%emt 0:01:30]} 38. Ng4 {[%emt 0:00:37]} Qf3 {[%emt 0:02:30]} 39. Ne5 {[%emt 0:00:57]} Ne2+ {[%emt 0:00:00]} 40. Kf1 {[%emt 0:00:09]} Qxf2# {[%emt 0:00:00]} 0-1

[Event "Turkish Cup 2022"]
[Site "Sakarya"]
[Date "2022.03.25"]
[Round "1.38"]
[White "Daghan, Devran"]
[Black "Efetaskin, Can"]
[Result "1-0"]
[ECO "D02"]
[WhiteElo "1985"]
[BlackElo "1204"]
[Annotator "NA"]
[PlyCount "69"]
[EventDate "2022.03.25"]
[EventType "swiss"]
[EventCountry "TUR"]
[SourceTitle "playchess.com"]
[Source "ChessBase"]
[SourceQuality "1"]
[TimeControl "5400+30"]

1. d4 {[%emt 0:01:00]} d5 {[%emt 0:01:00]} 2. e3 {[%emt 0:00:30]} Nf6 {[%emt 0:02:30]} 3. Bd3 {[%emt 0:00:30]} Nc6 {[%emt 0:05:30]} 4. Nf3 {[%emt 0:09:30]} Bg4 {[%emt 0:02:30]} 5. Bb5 {[%emt 0:02:30]} e6 {[%emt 0:05:30]} 6. h3 {[%emt 0:00:30]} Bxf3 {[%emt 0:00:30]} 7. Qxf3 {[%emt 0:04:30]} Bd6 {[%emt 0:00:30]} 8. c4 {[%emt 0:00:30]} Bb4+ {[%emt 0:07:30]} 9. Bd2 {[%emt 0:09:30]} O-O {[%emt 0:02:30]} 10. a3 {[%emt 0:04:30]} Bxd2+ {[%emt 0:00:30]} 11. Nxd2 {[%emt 0:00:00]} Ne7 {[%emt 0:01:30]} 12. cxd5 {[%emt 0:01:00]} Qxd5 {[%emt 0:01:30]} 13. Qxd5 {[%emt 0:05:30]} exd5 {[%emt 0:04:30]} 14. Rc1 {[%emt 0:00:30]} c6 {[%emt 0:00:30]} 15. Bd3 {[%emt 0:00:30]} Ng6 {[%emt 0:02:30]} 16. O-O {[%emt 0:06:30]} a5 {[%emt 0:03:30]} 17. a4 {[%emt 0:10:30]} Nd7 {[%emt 0:01:30]} 18. Nb3 {[%emt 0:05:30]} Ne7 {[%emt 0:01:30]} 19. Rfe1 {[%emt 0:01:30]} Nc8 {[%emt 0:01:30]} 20. e4 {[%emt 0:02:30]} dxe4 {[%emt 0:03:30]} 21. Rxe4 {[%emt 0:02:30]} Ncb6 {[%emt 0:00:30]} 22. Re7 {[%emt 0:01:30]} Rfd8 {[%emt 0:02:30]} 23. Nc5 {[%emt 0:15:30]} Nxc5 {[%emt 0:03:30]} 24. dxc5 {[%emt 0:00:09]} Rxd3 {[%emt 0:16:30]} 25. cxb6 {[%emt 0:00:30]} Rb8 {[%emt 0:00:30]} 26. Rc3 {[%emt 0:03:11]} Rd4 {[%emt 0:01:30]} 27. Rf3 {[%emt 0:00:10]} f6 {[%emt 0:01:30]} 28. Rg3 {[%emt 0:03:02]} g6 {[%emt 0:01:30]} 29. Rge3 {[%emt 0:00:31]} Rb4 {[%emt 0:05:30]} 30. Rd7 {[%emt 0:00:50]} Rxb6 {[%emt 0:00:30]} 31. Ree7 {[%emt 0:00:11]} Rxb2 {[%emt 0:01:30]} 32. Rg7+ {[%emt 0:00:03]} Kf8 {[%emt 0:00:30]} 33. Rdf7+ {[%emt 0:00:50]} Ke8 {[%emt 0:00:30]} 34. Rxh7 {[%emt 0:00:00]} c5 {[%emt 0:01:00]} 35. Rc7 {[%emt 0:00:19]} 1-0

[Event "Turkish Cup 2022"]
[Site "Sakarya"]
[Date "2022.03.25"]
[Round "1.39"]
[White "Bektasoglu, Ali"]
[Black "Ozcan, Ilker"]
[Result "1/2-1/2"]
[ECO "B32"]
[WhiteElo "1224"]
[BlackElo "2014"]
[Annotator "NA"]
[PlyCount "77"]
[EventDate "2022.03.25"]
[EventType "swiss"]
[EventCountry "TUR"]
[SourceTitle "playchess.com"]
[Source "ChessBase"]
[SourceQuality "1"]
[TimeControl "5400+30"]

1. e4 {[%emt 0:01:00]} c5 {[%emt 0:01:00]} 2. Nf3 {[%emt 0:00:30]} Nc6 {[%emt 0:00:30]} 3. d4 {[%emt 0:00:00]} cxd4 {[%emt 0:00:00]} 4. Nxd4 {[%emt 0:00:00]} Qb6 {[%emt 0:00:00]} 5. Nxc6 {[%emt 0:01:30]} bxc6 {[%emt 0:00:00]} 6. g3 {[%emt 0:02:30]} Nf6 {[%emt 0:00:00]} 7. Bg2 {[%emt 0:00:30]} Ba6 {[%emt 0:01:30]} 8. Nc3 {[%emt 0:07:30]} e5 {[%emt 0:01:30]} 9. Rb1 {[%emt 0:07:30]} Bc5 {[%emt 0:02:30]} 10. Qf3 {[%emt 0:02:30]} Bd4 {[%emt 0:07:30]} 11. Ne2 {[%emt 0:18:30]} Qa5+ {[%emt 0:05:30]} 12. Bd2 {[%emt 0:06:30]} Qxa2 {[%emt 0:00:30]} 13. O-O {[%emt 0:00:30]} Bxe2 {[%emt 0:16:30]} 14. Qxe2 {[%emt 0:01:30]} O-O {[%emt 0:00:30]} 15. c3 {[%emt 0:01:30]} Bb6 {[%emt 0:04:30]} 16. Bh3 {[%emt 0:05:30]} d5 {[%emt 0:02:30]} 17. exd5 {[%emt 0:04:30]} cxd5 {[%emt 0:06:30]} 18. Bg2 {[%emt 0:18:20]} e4 {[%emt 0:03:30]} 19. Bg5 {[%emt 0:06:01]} Bd8 {[%emt 0:01:30]} 20. Qb5 {[%emt 0:04:34]} Qa5 {[%emt 0:05:30]} 21. Qxa5 {[%emt 0:02:35]} Bxa5 {[%emt 0:00:30]} 22. Bxf6 {[%emt 0:00:30]} gxf6 {[%emt 0:00:30]} 23. Rbd1 {[%emt 0:00:30]} Rad8 {[%emt 0:00:30]} 24. Rd2 {[%emt 0:00:30]} Bb6 {[%emt 0:00:30]} 25. Kh1 {[%emt 0:00:30]} Rfe8 {[%emt 0:00:30]} 26. Rfd1 {[%emt 0:00:30]} Re5 {[%emt 0:00:30]} 27. b4 {[%emt 0:00:30]} Rc8 {[%emt 0:00:30]} 28. Rxd5 {[%emt 0:00:30]} Rxc3 {[%emt 0:00:30]} 29. Rxe5 {[%emt 0:00:30]} fxe5 {[%emt 0:00:30]} 30. Bxe4 {[%emt 0:00:30]} Rc4 {[%emt 0:00:30]} 31. f3 {[%emt 0:00:30]} Rxb4 {[%emt 0:00:30]} 32. Rd5 {[%emt 0:04:43]} a5 {[%emt 0:25:31]} 33. Rxe5 {[%emt 0:01:18]} Kg7 {[%emt 0:00:36]} 34. Bc6 {[%emt 0:00:50]} Kf6 {[%emt 0:02:16]} 35. Rb5 {[%emt 0:00:38]} Rxb5 {[%emt 0:03:33]} 36. Bxb5 {[%emt 0:00:30]} Ke5 {[%emt 0:00:30]} 37. Be8 {[%emt 0:00:06]} f6 {[%emt 0:00:26]} 38. Kg2 {[%emt 0:00:54]} Kd5 {[%emt 0:01:32]} 39. f4 {[%emt 0:00:34]} 1/2-1/2

[Event "Turkish Cup 2022"]
[Site "Sakarya"]
[Date "2022.03.25"]
[Round "1.40"]
[White "Akin, Kadir"]
[Black "Odabasi, Nail"]
[Result "1-0"]
[ECO "B01"]
[WhiteElo "1964"]
[BlackElo "1448"]
[Annotator "NA"]
[PlyCount "41"]
[EventDate "2022.03.25"]
[EventType "swiss"]
[EventCountry "TUR"]
[SourceTitle "playchess.com"]
[Source "ChessBase"]
[SourceQuality "1"]
[TimeControl "5400+30"]

1. e4 {[%emt 0:01:00]} d5 {[%emt 0:01:00]} 2. Nf3 {[%emt 0:00:00]} dxe4 {[%emt 0:00:30]} 3. Ng5 {[%emt 0:00:00]} Nf6 {[%emt 0:00:30]} 4. Nc3 {[%emt 0:00:30]} Bg4 {[%emt 0:03:30]} 5. Be2 {[%emt 0:00:30]} Bf5 {[%emt 0:00:30]} 6. Bc4 {[%emt 0:00:30]} e6 {[%emt 0:00:30]} 7. f3 {[%emt 0:00:30]} exf3 {[%emt 0:00:30]} 8. Qxf3 {[%emt 0:00:30]} Nc6 {[%emt 0:00:30]} 9. Nxf7 {[%emt 0:00:30]} Kxf7 {[%emt 0:00:30]} 10. Qxf5 {[%emt 0:00:00]} Nd4 {[%emt 0:03:30]} 11. Qd3 {[%emt 0:00:00]} c6 {[%emt 0:02:30]} 12. Ne4 {[%emt 0:03:30]} Nxe4 {[%emt 0:04:30]} 13. Qxe4 {[%emt 0:00:00]} Qd6 {[%emt 0:02:30]} 14. c3 {[%emt 0:02:00]} b5 {[%emt 0:01:30]} 15. O-O+ {[%emt 0:06:30]} Ke8 {[%emt 0:03:30]} 16. Bd3 {[%emt 0:01:30]} Rd8 {[%emt 0:02:30]} 17. Qg6+ {[%emt 0:01:30]} Kd7 {[%emt 0:00:30]} 18. Qg4 {[%emt 0:06:30]} Nb3 {[%emt 0:02:30]} 19. axb3 {[%emt 0:02:30]} Qxd3 {[%emt 0:00:30]} 20. Rf7+ {[%emt 0:02:30]} Kc8 {[%emt 0:01:30]} 21. Qxe6+ {[%emt 0:00:00]} 1-0

[Event "Turkish Cup 2022"]
[Site "Sakarya"]
[Date "2022.03.25"]
[Round "1.41"]
[White "Ersoz, Celalettin"]
[Black "Ibik, Halit Yavuz"]
[Result "0-1"]
[ECO "D35"]
[WhiteElo "1279"]
[BlackElo "1996"]
[Annotator "ChessBase"]
[PlyCount "34"]
[EventDate "2022.03.25"]
[EventType "swiss"]
[EventCountry "TUR"]
[SourceTitle "playchess.com"]
[Source "ChessBase"]
[SourceQuality "1"]
[TimeControl "5400+30"]

1. d4 {[%emt 0:01:00]} d5 {[%emt 0:01:00]} 2. c4 {[%emt 0:00:30]} e6 {[%emt 0:00:00]} 3. Nf3 {[%emt 0:00:30]} Nf6 {[%emt 0:00:00]} 4. Nc3 {[%emt 0:01:30]} c6 {[%emt 0:00:30]} 5. cxd5 {[%emt 0:01:30]} exd5 {[%emt 0:00:30]} 6. h3 {[%emt 0:01:30]} Bd6 {[%emt 0:00:30]} 7. e3 {[%emt 0:01:30]} O-O {[%emt 0:06:30]} 8. Bd3 {[%emt 0:00:30]} Re8 {[%emt 0:00:30]} 9. O-O {[%emt 0:00:30]} Ne4 {[%emt 0:01:30]} 10. Qc2 {[%emt 0:01:30]} f5 {[%emt 0:00:30]} 11. a3 {[%emt 0:02:30]} Nd7 {[%emt 0:10:30]} 12. b4 {[%emt 0:04:30]} Qf6 {[%emt 0:02:30]} 13. Rb1 {[%emt 0:04:30]} g5 {[%emt 0:05:30]} 14. Bxe4 {[%emt 0:02:30]} fxe4 {[%emt 0:03:30]} 15. Nd2 {[%emt 0:02:30]} g4 {[%emt 0:13:30]} 16. g3 {[%emt 0:10:30]} gxh3 {[%emt 0:01:30]} 17. Nb3 {[%emt 0:05:30]} Qf3 {[%emt 0:00:30]} 0-1

[Event "Turkish Cup 2022"]
[Site "Sakarya"]
[Date "2022.03.25"]
[Round "1.42"]
[White "Demirag, Batuhan"]
[Black "Colak, Mehmet"]
[Result "1-0"]
[ECO "B38"]
[WhiteElo "1923"]
[BlackElo "1389"]
[Annotator "ChessBase"]
[PlyCount "55"]
[EventDate "2022.03.25"]
[EventType "swiss"]
[EventCountry "TUR"]
[SourceTitle "playchess.com"]
[Source "ChessBase"]
[SourceQuality "1"]
[TimeControl "5400+30"]

1. Nf3 {[%emt 0:01:00]} c5 {[%emt 0:01:00]} 2. c4 {[%emt 0:00:30]} Nc6 {[%emt 0:00:30]} 3. d4 {[%emt 0:00:30]} cxd4 {[%emt 0:01:30]} 4. Nxd4 {[%emt 0:00:30]} g6 {[%emt 0:00:30]} 5. e4 {[%emt 0:00:30]} Bg7 {[%emt 0:01:30]} 6. Be3 {[%emt 0:00:30]} Nf6 {[%emt 0:08:30]} 7. Nc3 {[%emt 0:00:00]} a6 {[%emt 0:01:30]} 8. Be2 {[%emt 0:03:00]} e6 {[%emt 0:01:30]} 9. Nxc6 {[%emt 0:01:30]} bxc6 {[%emt 0:00:30]} 10. e5 {[%emt 0:00:30]} Ng8 {[%emt 0:01:30]} 11. f4 {[%emt 0:05:30]} Ne7 {[%emt 0:05:30]} 12. O-O {[%emt 0:02:30]} O-O {[%emt 0:01:30]} 13. Bc5 {[%emt 0:01:30]} Re8 {[%emt 0:01:30]} 14. Ne4 {[%emt 0:01:30]} Nf5 {[%emt 0:05:30]} 15. g4 {[%emt 0:00:30]} Ne7 {[%emt 0:02:30]} 16. Nd6 {[%emt 0:02:30]} Rf8 {[%emt 0:02:30]} 17. Qb3 {[%emt 0:02:30]} Qc7 {[%emt 0:01:30]} 18. Qe3 {[%emt 0:02:30]} Rb8 {[%emt 0:04:30]} 19. b4 {[%emt 0:01:30]} Qd8 {[%emt 0:02:30]} 20. a3 {[%emt 0:02:30]} f6 {[%emt 0:00:30]} 21. Ba7 {[%emt 0:00:30]} Rb7 {[%emt 0:02:30]} 22. Nxb7 {[%emt 0:00:30]} Bxb7 {[%emt 0:00:30]} 23. Bc5 {[%emt 0:00:30]} Re8 {[%emt 0:00:30]} 24. Rad1 {[%emt 0:00:30]} Bc8 {[%emt 0:02:30]} 25. Bb6 {[%emt 0:00:00]} d5 {[%emt 0:00:30]} 26. Bxd8 {[%emt 0:00:00]} Rxd8 {[%emt 0:00:00]} 27. b5 {[%emt 0:00:30]} axb5 {[%emt 0:00:00]} 28. cxb5 {[%emt 0:00:30]} 1-0

[Event "Turkish Cup 2022"]
[Site "Sakarya"]
[Date "2022.03.25"]
[Round "1.43"]
[White "Ucan, Hakan"]
[Black "Kavri, Yusuf Eren"]
[Result "0-1"]
[ECO "D00"]
[WhiteElo "1375"]
[BlackElo "1886"]
[Annotator "NA"]
[PlyCount "72"]
[EventDate "2022.03.25"]
[EventType "swiss"]
[EventCountry "TUR"]
[SourceTitle "playchess.com"]
[Source "ChessBase"]
[SourceQuality "1"]
[TimeControl "5400+30"]

1. d4 {[%emt 0:01:00]} Nf6 {[%emt 0:01:00]} 2. Bf4 {[%emt 0:01:30]} d5 {[%emt 0:00:30]} 3. e3 {[%emt 0:00:00]} c5 {[%emt 0:00:00]} 4. c3 {[%emt 0:02:00]} Nc6 {[%emt 0:00:00]} 5. Nd2 {[%emt 0:00:30]} Bf5 {[%emt 0:04:30]} 6. Qb3 {[%emt 0:04:30]} Qd7 {[%emt 0:03:30]} 7. Ngf3 {[%emt 0:01:30]} c4 {[%emt 0:01:30]} 8. Qd1 {[%emt 0:05:30]} e6 {[%emt 0:04:30]} 9. Be2 {[%emt 0:02:30]} h6 {[%emt 0:00:30]} 10. O-O {[%emt 0:02:30]} Bd6 {[%emt 0:00:30]} 11. Ne5 {[%emt 0:03:30]} Qc7 {[%emt 0:07:30]} 12. Ndf3 {[%emt 0:05:30]} O-O {[%emt 0:00:30]} 13. Bg3 {[%emt 0:06:30]} Ne4 {[%emt 0:04:30]} 14. Nxc6 {[%emt 0:01:30]} Nxg3 {[%emt 0:01:30]} 15. Ne7+ {[%emt 0:01:30]} Bxe7 {[%emt 0:00:30]} 16. hxg3 {[%emt 0:00:30]} b5 {[%emt 0:03:30]} 17. a3 {[%emt 0:02:30]} a5 {[%emt 0:00:30]} 18. b4 {[%emt 0:02:30]} Ra6 {[%emt 0:04:30]} 19. Qd2 {[%emt 0:12:30]} Rfa8 {[%emt 0:02:30]} 20. Qb2 {[%emt 0:07:30]} Qa7 {[%emt 0:01:30]} 21. Rad1 {[%emt 0:09:30]} axb4 {[%emt 0:00:30]} 22. axb4 {[%emt 0:00:30]} Ra2 {[%emt 0:00:30]} 23. Qc1 {[%emt 0:00:30]} Rxe2 {[%emt 0:00:30]} 24. Ne5 {[%emt 0:02:30]} Bd6 {[%emt 0:01:30]} 25. Nc6 {[%emt 0:02:30]} Qa2 {[%emt 0:00:30]} 26. Qa1 {[%emt 0:00:30]} Rxf2 {[%emt 0:00:30]} 27. Qxa2 {[%emt 0:01:30]} Rfxa2 {[%emt 0:01:30]} 28. Na5 {[%emt 0:00:30]} Bxg3 {[%emt 0:01:30]} 29. Ra1 {[%emt 0:00:30]} Bf2+ {[%emt 0:00:00]} 30. Kh1 {[%emt 0:00:30]} Rb2 {[%emt 0:02:00]} 31. Ra3 {[%emt 0:01:30]} Be4 {[%emt 0:03:30]} 32. Rfa1 {[%emt 0:00:00]} Bg3 {[%emt 0:02:30]} 33. R3a2 {[%emt 0:00:00]} Bxg2+ {[%emt 0:00:30]} 34. Kg1 {[%emt 0:00:30]} Rxa2 {[%emt 0:00:00]} 35. Rxa2 {[%emt 0:00:30]} Be4 {[%emt 0:00:00]} 36. Kf1 {[%emt 0:00:30]} h5 {[%emt 0:00:00]} 0-1

[Event "Turkish Cup 2022"]
[Site "Sakarya"]
[Date "2022.03.25"]
[Round "1.44"]
[White "Canbulan, Arda"]
[Black "Isik, Ege"]
[Result "1-0"]
[ECO "B22"]
[WhiteElo "1867"]
[BlackElo "1214"]
[Annotator "NA"]
[PlyCount "103"]
[EventDate "2022.03.25"]
[EventType "swiss"]
[EventCountry "TUR"]
[SourceTitle "playchess.com"]
[Source "ChessBase"]
[SourceQuality "1"]
[TimeControl "5400+30"]

1. e4 {[%emt 0:01:00]} c5 {[%emt 0:01:00]} 2. c3 {[%emt 0:00:00]} d5 {[%emt 0:00:30]} 3. exd5 {[%emt 0:00:00]} Qxd5 {[%emt 0:00:30]} 4. d4 {[%emt 0:00:30]} Nc6 {[%emt 0:00:30]} 5. Nf3 {[%emt 0:00:00]} Bg4 {[%emt 0:01:30]} 6. Be2 {[%emt 0:00:00]} e6 {[%emt 0:00:30]} 7. h3 {[%emt 0:00:00]} Bh5 {[%emt 0:00:30]} 8. O-O {[%emt 0:00:00]} Nf6 {[%emt 0:00:30]} 9. Be3 {[%emt 0:00:30]} cxd4 {[%emt 0:01:30]} 10. cxd4 {[%emt 0:00:30]} Be7 {[%emt 0:00:30]} 11. Nc3 {[%emt 0:00:30]} Qd7 {[%emt 0:00:30]} 12. Qb3 {[%emt 0:00:00]} O-O {[%emt 0:03:30]} 13. Rfd1 {[%emt 0:00:00]} Rfd8 {[%emt 0:01:30]} 14. Ne5 {[%emt 0:02:30]} Qc7 {[%emt 0:00:30]} 15. Nb5 {[%emt 0:02:30]} Qb8 {[%emt 0:02:30]} 16. g4 {[%emt 0:02:30]} Bg6 {[%emt 0:01:30]} 17. Bf4 {[%emt 0:00:30]} Nxe5 {[%emt 0:04:30]} 18. Bxe5 {[%emt 0:00:30]} Qc8 {[%emt 0:00:30]} 19. Rac1 {[%emt 0:03:30]} Qd7 {[%emt 0:01:30]} 20. Nc7 {[%emt 0:02:30]} a6 {[%emt 0:06:30]} 21. Nxa8 {[%emt 0:00:30]} Rxa8 {[%emt 0:00:30]} 22. Rc7 {[%emt 0:00:00]} Qe8 {[%emt 0:00:00]} 23. Bf3 {[%emt 0:01:00]} Rd8 {[%emt 0:06:00]} 24. Qxb7 {[%emt 0:02:30]} Bd6 {[%emt 0:00:30]} 25. Bxd6 {[%emt 0:00:30]} Rxd6 {[%emt 0:00:30]} 26. Rc8 {[%emt 0:00:30]} Rd8 {[%emt 0:00:00]} 27. Rxd8 {[%emt 0:00:30]} Qxd8 {[%emt 0:00:00]} 28. Rc1 {[%emt 0:00:30]} Qf8 {[%emt 0:02:30]} 29. Rc8 {[%emt 0:00:30]} Ne8 {[%emt 0:00:30]} 30. Bc6 {[%emt 0:00:30]} f6 {[%emt 0:00:30]} 31. Qd7 {[%emt 0:01:30]} Bf7 {[%emt 0:02:30]} 32. Rxe8 {[%emt 0:00:30]} Bxe8 {[%emt 0:00:30]} 33. Qxe8 {[%emt 0:00:00]} Qxe8 {[%emt 0:00:00]} 34. Bxe8 {[%emt 0:00:00]} Kf8 {[%emt 0:00:00]} 35. Bc6 {[%emt 0:00:30]} Ke7 {[%emt 0:00:00]} 36. b4 {[%emt 0:00:30]} Kd6 {[%emt 0:00:00]} 37. Bb7 {[%emt 0:00:00]} Kc7 {[%emt 0:00:30]} 38. Bxa6 {[%emt 0:00:00]} Kd6 {[%emt 0:00:30]} 39. Bc4 {[%emt 0:00:00]} e5 {[%emt 0:00:00]} 40. dxe5+ {[%emt 0:00:00]} fxe5 {[%emt 0:00:00]} 41. f3 {[%emt 0:00:30]} g5 {[%emt 0:00:00]} 42. a4 {[%emt 0:00:00]} Kc6 {[%emt 0:00:00]} 43. Kf2 {[%emt 0:00:00]} Kb6 {[%emt 0:00:30]} 44. Ke3 {[%emt 0:00:00]} Kc6 {[%emt 0:00:30]} 45. Ke4 {[%emt 0:00:00]} Kd6 {[%emt 0:00:30]} 46. a5 {[%emt 0:00:30]} h6 {[%emt 0:00:00]} 47. a6 {[%emt 0:00:00]} Kc7 {[%emt 0:00:00]} 48. Kxe5 {[%emt 0:00:00]} Kb6 {[%emt 0:00:00]} 49. Kd6 {[%emt 0:00:00]} Ka7 {[%emt 0:00:00]} 50. Kc7 {[%emt 0:01:00]} Ka8 {[%emt 0:00:30]} 51. b5 {[%emt 0:00:00]} Ka7 {[%emt 0:00:30]} 52. b6+ {[%emt 0:03:00]} 1-0